[Event "Satranc Arena IM Series-1 2024"]
[Site "Izmir"]
[Date "2024.03.18"]
[Round "1.1"]
[White "David, Alexandru-Vasile"]
[Black "Aydin, Gulenay"]
[Result "1-0"]
[ECO "D43"]
[WhiteElo "2360"]
[BlackElo "2152"]
[Annotator "TA"]
[PlyCount "75"]
[EventDate "2024.03.18"]
[EventCountry "TUR"]
[SourceTitle "playchess.com"]
[Source "ChessBase"]
[SourceQuality "1"]
[TimeControl "5400+30"]

{[%evp 31,75,3,16,-18,-20,-23,145,97,159,138,135,135,239,99,156,97,104,87,225,233,413,226,240,187,185,179,143,175,169,178,329,312,337,283,285,289,616,611,558,375,349,349,323,312,29990,29991]} 1. d4 {[%emt 0:00:04]} d5 {[%emt 0:00:05]} 2. c4 {[%emt 0:00:15]} e6 {[%emt 0:00:05]} 3. Nc3 {[%emt 0:00:45]} c6 {[%emt 0:00:07]} 4. Nf3 {[%emt 0:00:46]} Nf6 {[%emt 0:00:06]} 5. Bg5 {[%emt 0:01:47]} h6 {[%emt 0:00:07]} 6. Bh4 {[%emt 0:00:05]} dxc4 {[%emt 0:00:16]} 7. e4 {[%emt 0:00:08]} g5 {[%emt 0:00:04]} 8. Bg3 {[%emt 0:00:04]} b5 {[%emt 0:00:03]} 9. Be2 {[%emt 0:03:17]} Bg7 {[%emt 0:00:08] D43: Semi-Slav: 5 Bg5 h6.} 10. h4 {[%emt 0:11:47]} g4 {[%emt 0:00:10]} 11. Ne5 {[%emt 0:00:15]} O-O {[%emt 0:03:54]} 12. a3 {[%emt 0:15:33]} Bb7 $146 {[%emt 0:16:46]} ({Predecessor:} 12... h5 13. f3 Nbd7 14. fxg4 hxg4 15. Nxg4 Nxg4 16. Bxg4 Nf6 17. Be5 a5 18. Qf3 Bb7 {1-0 Pudovkin,D (2317)-Kuznetsov,A (2054) Golubitskaya Rating 2008}) 13. Qc2 {[%emt 0:06:37]} h5 {[%emt 0:16:24]} 14. Rd1 {[%emt 0:03:51]} Nfd7 {[%emt 0:02:14]} 15. O-O {[%emt 0:01:31]} Bf6 {[%emt 0:08:25]} 16. f3 {[%emt 0:03:05]} Bxh4 {[%emt 0:06:13]} 17. Bxh4 {[%emt 0:00:49]} Qxh4 {[%emt 0:00:02]} 18. fxg4 {[%emt 0:00:10]} c5 $2 {[%emt 0:02:59]} (18... Nxe5 $11 19. dxe5 Bc8 (19... hxg4 $2 20. Rf4 $18)) 19. Nxb5 $16 {[%emt 0:07:10]} (19. gxh5 cxd4 20. Nxd7 d3 21. Bxd3 Nxd7 $16) 19... Nxe5 {[%emt 0:02:54]} 20. dxe5 {[%emt 0:00:09]} Nc6 {[%emt 0:00:05]} 21. Nd6 {[%emt 0:10:25]} (21. Bxc4 Nxe5 22. Be2 (22. Nd6 $2 Nxg4 23. g3 Qxg3+ 24. Qg2 Qxg2+ 25. Kxg2 Ne3+ 26. Kh3 Nxd1 $19) 22... hxg4 $17 (22... Nxg4 23. Bxg4 hxg4 24. Rf4 $17)) (21. Qxc4 hxg4 22. Rf4 (22. Qxc5 $2 g3 $19) 22... Nxe5 23. Qxc5 Qh8 $16 (23... Qg5 $2 24. Rxg4 Qxg4 25. Bxg4 $18)) (21. gxh5 Nxe5 22. Nd6 (22. Bxc4 $2 Bxe4 23. Qc3 Ng4 $19) 22... Bc6 $14) 21... Rab8 {[%emt 0:00:22] [#]} (21... hxg4 $16 {was necessary.} 22. Rf4 (22. Nxb7 $2 g3 23. Rf3 Qh2+ 24. Kf1 Qh1#) 22... Nxe5) 22. gxh5 {[%emt 0:04:38]} (22. Bxc4 Nxe5 23. Nxf7 Rxf7 $11 (23... Nxg4 $2 24. Nh6+ Nxh6 25. Bxe6+ Nf7 26. Bxf7+ Rxf7 27. Rxf7 $18)) (22. Qc1 $1 $18 {[%cal Of1f5] and the rest is easy. Rf5! would now be deadly.} Nxe5 23. Rf5 hxg4 (23... exf5 $2 24. Nxf5 Qf6 25. Rd6 $18) 24. Rxe5) 22... Nxe5 {[%emt 0:04:12] [#]} (22... Ba6 $142) 23. Qd2 {[%emt 0:04:22]} (23. Bxc4 $2 Ng4 24. g3 Qxg3+ 25. Qg2 Qxg2+ 26. Kxg2 Ne3+ 27. Kf2 Nxf1 (27... Nxd1+ 28. Rxd1 Bc6 29. b3 $19) 28. Rxf1 Bc6 $19) ({Better is} 23. Qc1 $1 {[%cal Rc1h6]}) 23... Kh7 $16 {[%emt 0:03:21]} 24. Rf4 {[%emt 0:01:43]} (24. Bxc4 Rbd8 (24... Nxc4 25. Nxc4 Rbd8 26. Nd6 $16) 25. Qe1 Qxe1 26. Rfxe1 Rxd6 27. Rxd6 Nxc4 $15) (24. Nxc4 Qxe4 25. Rf2 Rg8 $14 (25... Nxc4 26. Bxc4 Qxc4 27. Qg5 $14) (25... Nxc4 26. Bxc4 Qxc4 27. Qg5 $16)) 24... Qg3 {[%emt 0:04:24]} (24... Qg5 $16 {might work better.}) 25. Rf6 $1 $18 {[%emt 0:01:50]} (25. Bxc4 Rbd8 26. Rdf1 f5 27. Bxe6 Bxe4 28. Bxf5+ Rxf5 29. Nxe4 (29. Nxf5 Rxd2 30. Nxg3 Rxg2+ 31. Kh1 Bc6 $17) (29. Rxf5 Rxd6 30. Rg5 Qh4 $11) (29. Rxe4 $2 Rxf1+ 30. Kxf1 Rf8+ 31. Ke2 Rf2+ 32. Kd1 Rxd2+ 33. Kxd2 Qxg2+ 34. Kc3 Qg3+ 35. Kd2 Qd3+ 36. Ke1 Qxd6 $19) 29... Rxd2 30. Nxg3 Rg5 $16) (25. Nxc4 Nxc4 26. Bxc4 Rbd8 $19) 25... Qg7 $2 {[%emt 0:02:11]} (25... Rbd8 {keeps fighting.} 26. Qh6+ (26. Bxc4 Nxc4 27. Qh6+ Kg8 $17) 26... Kg8) 26. Qf4 {[%emt 0:00:37]} (26. Rdf1 $142) 26... Rg8 $18 {[%emt 0:08:19]} 27. Bf1 {[%emt 0:00:13]} (27. Qxe5 $2 Qxg2#) 27... Qg5 {[%emt 0:00:13]} 28. Nxf7 {[%emt 0:00:42]} (28. Nxc4 Qxf4 29. Rxf4 Nxc4 30. Bxc4 (30. Rxf7+ Kh6 $16) 30... Kh6) 28... Qxf4 {[%emt 0:02:33]} 29. Rxf4 {[%emt 0:00:05]} Nxf7 {[%emt 0:02:09]} (29... Rbf8 $2 30. Ng5+ Kh6 31. Rxf8 (31. Nxe6 Rxf4 32. Nxf4 Bxe4 $18) 31... Rxf8 32. Nxe6 $18) 30. Rxf7+ {[%emt 0:00:38]} Kh8 $2 {[%emt 0:01:52]} (30... Rg7 31. Rf4 e5) 31. Rd6 $18 {[%emt 0:03:27]} ({Much less strong is} 31. Bxc4 Bxe4 32. Rd2 (32. Rxa7 $2 Rxg2+ 33. Kf1 Rf8+ 34. Ke1 Rg1+ 35. Kd2 Rd8+ 36. Ke3 Rgxd1 $19) 32... Bd5 $18) 31... Rge8 {[%emt 0:13:49]} 32. Bxc4 {[%emt 0:01:29]} Bxe4 {[%emt 0:00:05]} 33. b3 {[%emt 0:00:08]} (33. Rxa7 Rxb2 34. Rxe6 (34. Bxe6 Rxg2+ 35. Kf1 Rb8 $11) 34... Rxg2+ 35. Kf1 Rxe6 36. Bxe6 Rc2 $11) 33... Bd5 $2 {[%emt 0:01:37]} (33... Rb6 34. Rd2 (34. Rdd7 Rg8 $18) 34... Ra8) 34. Rdd7 $18 {[%emt 0:01:33]} Be4 {[%emt 0:00:36]} 35. Rxa7 {[%emt 0:01:31]} Rg8 {[%emt 0:00:04]} 36. Rf6 {[%emt 0:00:29]} ({Not} 36. Bxe6 Rxg2+ 37. Kf1 Rh2 $18) 36... Rxg2+ {[%emt 0:00:58]} 37. Kf1 {[%emt 0:00:05]} Bd5 $2 {[%emt 0:00:35]} (37... Rg7 $18) 38. Bxd5 {[%emt 0:00:08]} 1-0

[Event "Satranc Arena IM Series-1 2024"]
[Site "Izmir"]
[Date "2024.03.18"]
[Round "1.2"]
[White "Kuru, Atilla"]
[Black "Yermolinsky, Alex"]
[Result "1/2-1/2"]
[ECO "B17"]
[WhiteElo "2246"]
[BlackElo "2421"]
[Annotator "TA"]
[PlyCount "82"]
[EventDate "2024.03.18"]
[EventCountry "TUR"]
[SourceTitle "playchess.com"]
[Source "ChessBase"]
[SourceQuality "1"]
[TimeControl "5400+30"]

{[%evp 17,82,30,41,20,33,0,7,0,0,0,0,-7,-1,-9,18,18,33,0,0,0,14,10,23,8,17,0,17,0,18,-34,-34,-45,-35,-39,-36,-29,0,-2,0,-79,-74,-62,0,-47,-43,-50,-37,-112,-79,-85,-77,-172,-187,-231,-222,-389,-382,-374,-222,-217,0,0,0,-216,0,0,0]} 1. e4 {[%emt 0:00:02]} c6 {[%emt 0:00:15]} 2. d4 {[%emt 0:00:06]} d5 {[%emt 0:00:05]} 3. Nc3 {[%emt 0:00:03]} dxe4 {[%emt 0:00:15]} 4. Nxe4 {[%emt 0:00:02]} Nd7 {[%emt 0:01:57]} 5. Nf3 {[%emt 0:00:11]} Ngf6 {[%emt 0:00:27]} 6. Nxf6+ {[%emt 0:00:05]} Nxf6 {[%emt 0:00:06]} 7. c3 {[%emt 0:00:03]} Bg4 {[%emt 0:02:23]} 8. h3 {[%emt 0:00:04]} Bxf3 {[%emt 0:01:48]} 9. Qxf3 {[%emt 0:00:09]} e6 {[%emt 0:01:25]} 10. Bf4 {[%emt 0:01:13]} Bd6 {[%emt 0:04:19]} 11. Bxd6 {[%emt 0:01:10]} Qxd6 {[%emt 0:00:09]} 12. Bd3 {[%emt 0:00:08]} O-O {[%emt 0:02:04]} 13. O-O {[%emt 0:00:19]} Rfd8 {[%emt 0:00:38]} 14. Rad1 {[%emt 0:00:26]} Qd5 {[%emt 0:10:30]} 15. Qxd5 {[%emt 0:00:12]} cxd5 {[%emt 0:05:31]} 16. a4 {[%emt 0:01:52]} Ne8 {[%emt 0:04:13]} 17. a5 {[%emt 0:02:01]} Nd6 {[%emt 0:00:13]} 18. Ra1 {[%emt 0:01:42]} Rac8 {[%emt 0:04:05]} 19. Ra4 {[%emt 0:00:11]} Rc7 {[%emt 0:02:38]} 20. Rb4 {[%emt 0:00:35]} g6 {[%emt 0:10:21]} 21. Re1 {[%emt 0:00:47]} Kg7 {[%emt 0:00:15]} 22. f3 {[%emt 0:02:26]} h5 {[%emt 0:00:25]} 23. Kf2 {[%emt 0:02:11]} (23. h4 $11) 23... h4 $1 $15 {[%emt 0:01:00]} 24. Rc1 {[%emt 0:01:27]} Rdc8 {[%emt 0:05:12]} 25. Ke3 {[%emt 0:00:19]} Kf6 {[%emt 0:01:52]} 26. Kd2 {[%emt 0:02:54]} Rh8 {[%emt 0:14:13]} 27. b3 {[%emt 0:00:46]} Rh5 {[%emt 0:01:59]} 28. a6 {[%emt 0:02:10]} (28. Ke3 $11) 28... Rg5 $17 {[%emt 0:03:35]} 29. Bf1 {[%emt 0:01:43]} bxa6 {[%emt 0:01:01]} (29... b5 $15 30. Ke3 Rc6) 30. Ke3 {[%emt 0:01:52]} (30. Ra4 $11) 30... a5 {[%emt 0:01:58]} 31. Ra4 {[%emt 0:00:12]} Rb7 {[%emt 0:03:47]} 32. Ra3 {[%emt 0:00:51]} (32. Rb1 $15) 32... Nf5+ {[%emt 0:01:55]} 33. Kd2 {[%emt 0:00:34][%cal Oc1b1]} Ng3 {[%emt 0:00:24] [#] Hoping for ...Nxf1+.} 34. Bd3 {[%emt 0:00:13]} (34. Ke1 $17 {might work better.}) 34... Nh5 $36 {[%emt 0:00:08][%mdl 2048] Keeping White busy.} 35. Bf1 {[%emt 0:03:23][%cal Od2e3]} Nf4 {[%emt 0:01:28]} 36. Rb1 $2 {[%emt 0:00:26]} (36. c4 {keeps fighting.}) 36... Nxg2 {[%emt 0:00:49]} 37. Rxa5 {[%emt 0:00:07]} Nf4 {[%emt 0:00:42]} (37... Rg3 $142 {Strongly threatening ...Nf4.} 38. b4 Nf4) 38. Ke3 {[%emt 0:00:03]} Ng2+ {[%emt 0:06:08] [#]} (38... Nh5 $19 {...Rg3 would now be deadly.} 39. b4 Rc7) 39. Kf2 $2 {[%emt 0:00:11]} (39. Kd2 $11 {and White is okay.} Rg3 40. b4) 39... Nf4 {[%emt 0:00:04]} 40. Ke3 {[%emt 0:00:00]} Ng2+ {[%emt 0:03:40]} (40... Nh5 $19 {White must now prevent ...Rg3.} 41. b4 Rc7) 41. Kf2 {[%emt 0:00:00]} Nf4 {[%emt 0:07:03] Weighted Error Value: White=0.24 (precise) /Black=0.32.  Loses game:     	White=1     	---        Missed win:     	---       	Black=2      Mistake:       	White=6     	Black=2      Inaccurate:     	White=2     	Black=2      OK:         	White=4     	Black=8      Best:        	White=4     	Black=4      Strong:       	---       	Black=1} 1/2-1/2

[Event "Satranc Arena IM Series-1 2024"]
[Site "Izmir"]
[Date "2024.03.18"]
[Round "1.3"]
[White "Yalcinkaya, Efe"]
[Black "Ozsakallioglu, Okan"]
[Result "0-1"]
[ECO "B22"]
[WhiteElo "2085"]
[BlackElo "2365"]
[Annotator "TA"]
[PlyCount "56"]
[EventDate "2024.03.18"]
[EventCountry "TUR"]
[SourceTitle "playchess.com"]
[Source "ChessBase"]
[SourceQuality "1"]
[TimeControl "5400+30"]

{[%evp 22,56,10,15,16,11,20,-33,-29,-131,-63,-64,-66,-81,-53,-59,-45,-78,-57,-222,-212,-227,-228,-225,-225,-224,-231,-236,-250,-253,-229,-792,-454,-29988,-29989,-29988,-29988]} 1. e4 {[%emt 0:00:02]} c5 {[%emt 0:00:01]} 2. c3 {[%emt 0:00:09]} Nf6 {[%emt 0:01:27]} 3. e5 {[%emt 0:00:14]} Nd5 {[%emt 0:00:05]} 4. Nf3 {[%emt 0:00:12]} Nc6 {[%emt 0:00:51]} 5. Bc4 {[%emt 0:00:39]} Nb6 {[%emt 0:02:50]} 6. Bb3 {[%emt 0:00:07]} c4 {[%emt 0:00:12]} 7. Bc2 {[%emt 0:00:05]} d5 {[%emt 0:00:25]} 8. exd6 {[%emt 0:00:08]} Qxd6 {[%emt 0:00:05]} 9. O-O {[%emt 0:00:58]} g6 {[%emt 0:04:17]} 10. b3 {[%emt 0:02:22]} Bg7 {[%emt 0:03:54]} 11. Na3 {[%emt 0:02:36]} cxb3 {[%emt 0:03:27]} 12. axb3 {[%emt 0:00:08]} O-O {[%emt 0:00:55]} 13. d4 {[%emt 0:03:57]} Bg4 {[%emt 0:15:21]} 14. Be3 {[%emt 0:10:22]} (14. Nc4 $11 Qd5 15. Ne3 Bxf3 16. Qxf3 Qxf3 17. gxf3) 14... Qd5 $15 {[%emt 0:07:22] Black is slightly better.} 15. Qe2 {[%emt 0:13:37] [#]} (15. c4 $11 {keeps the balance.} Bxf3 16. gxf3) 15... Bxf3 {[%emt 0:02:18]} (15... e5 $1 $17 {[%cal Re5e4] Hoping for ...e4.} 16. c4 (16. dxe5 $2 Nxe5 17. Bd1 Nxf3+ 18. gxf3 Bh3 $19) 16... Bxf3 17. gxf3 Nxd4 18. Bxd4 Qxd4) 16. gxf3 {[%emt 0:01:14]} Qh5 {[%emt 0:00:12] ...Nd5 is the strong threat. Black is more active.} 17. Be4 {[%emt 0:10:05]} Rac8 {[%emt 0:11:14]} 18. Nc4 {[%emt 0:06:26]} Nd5 {[%emt 0:01:47]} 19. Bd2 {[%emt 0:04:08]} Rfd8 {[%emt 0:13:14] ...e5 would now be deadly.} 20. Kh1 $2 {[%emt 0:06:06] Now White is beyond hope.} ({Better is} 20. Rfe1 $1 $15) 20... b5 {[%emt 0:02:29]} 21. Na5 {[%emt 0:13:49]} Nxa5 {[%emt 0:01:25]} 22. Bxd5 {[%emt 0:02:24]} Rxd5 {[%emt 0:00:20]} (22... Qxd5 23. Rxa5 Qxb3 24. Rxb5 $11) 23. Rxa5 {[%emt 0:00:05][%cal Of1g1] [#]} e5 $1 {[%emt 0:01:47]} 24. Qe4 {[%emt 0:10:57]} exd4 {[%emt 0:00:20]} 25. c4 {[%emt 0:00:11]} Qh3 $40 {[%emt 0:01:06][%mdl 128] Black is out for blood.} (25... bxc4 $2 26. Qxd5 (26. Rxd5 Qh3 $18) 26... Qxd5 27. Rxd5 $18) 26. Re1 {[%emt 0:01:03]} (26. Rg1 Rh5 (26... bxc4 $2 27. Qxd5 c3 28. Rxa7 $18) 27. Rg2) 26... Re5 {[%emt 0:01:00]} (26... bxc4 $2 {is the wrong capture.} 27. Qxd5 $18 (27. Rxd5 c3 $18) (27. Rxd5 c3 $18)) 27. Qd3 {[%emt 0:00:50]} (27. Qg4 $19 Rxe1+ 28. Bxe1 Qf1+ 29. Qg1) 27... Rxe1+ {[%emt 0:00:13]} 28. Bxe1 {[%emt 0:00:05]} Be5 {[%emt 0:00:03] Weighted Error Value: White=1.02/Black=0.39.  Loses game:     	White=1     	---        Mistake:       	White=4     	Black=1      Inaccurate:     	White=1     	Black=2      OK:         	White=5     	Black=6      Best:        	White=1     	Black=2      Strong:       	---       	Black=1} 0-1

[Event "Satranc Arena IM Series-1 2024"]
[Site "Izmir"]
[Date "2024.03.18"]
[Round "1.4"]
[White "Gunduz, Umut Erdem"]
[Black "Baltag, Iulian"]
[Result "0-1"]
[ECO "C10"]
[WhiteElo "2314"]
[BlackElo "2412"]
[Annotator "TA"]
[PlyCount "127"]
[EventDate "2024.03.18"]
[EventCountry "TUR"]
[SourceTitle "playchess.com"]
[Source "ChessBase"]
[SourceQuality "1"]
[TimeControl "5400+30"]

{[%evp 29,127,-81,-85,-85,-91,-91,-91,-93,-64,-95,-76,-145,-150,-150,-152,-159,-84,-70,-8,-8,0,0,0,0,0,-133,-139,-126,-144,-166,-162,-173,-137,-153,-152,-176,-180,-176,-147,-176,-174,-200,-167,-175,-152,-181,-181,-172,-171,-186,-179,-201,-201,-201,-201,-201,-191,-201,-198,-200,-153,-168,-168,-201,-193,-185,-184,-326,-314,-376,-376,-376,-335,-469,-576,-562,-369,-581,-575,-667,-683,-1100,-1070,-1341,-1035,-950,-969,-1304,-1293,-1665,-1960,-1704,-1528,-1671,-1555,-2292,-2277,-2223,-2037,-1664]} 1. e4 {[%emt 0:00:03]} e6 {[%emt 0:00:25]} 2. d4 {[%emt 0:00:15]} d5 {[%emt 0:00:07]} 3. Nc3 {[%emt 0:00:04]} dxe4 {[%emt 0:01:36]} 4. Nxe4 {[%emt 0:00:07]} Nd7 {[%emt 0:00:04]} 5. Nf3 {[%emt 0:00:29]} Ngf6 {[%emt 0:00:29]} 6. Nxf6+ {[%emt 0:00:25]} Nxf6 {[%emt 0:00:14]} 7. Be3 {[%emt 0:00:02] 7.c3 is a critical line.} Nd5 {[%emt 0:00:48] C10: French with 3 Nc3: Unusual Black 3rd moves and 3...dxe4.} 8. Bd2 {[%emt 0:00:44]} c5 {[%emt 0:00:29]} 9. Bb5+ {[%emt 0:06:27]} Bd7 {[%emt 0:00:44]} 10. Bxd7+ {[%emt 0:00:03]} Qxd7 {[%emt 0:00:06]} 11. Ne5 $146 {[%emt 0:08:13]} ({Predecessor:} 11. c4 Nf6 12. Ne5 Qc7 13. Qa4+ Nd7 14. Ba5 Qc8 15. O-O-O f6 16. d5 Ke7 17. Nxd7 Qxd7 18. Qxd7+ Kxd7 19. dxe6+ Kxe6 {1-0 So,W (2770)-Harikrishna,P (2719) PRO League KO Stage rapid 2020 (2)}) 11... Qc7 {[%emt 0:00:52]} 12. c4 {[%emt 0:12:36]} Nb6 {[%emt 0:00:23]} 13. O-O {[%emt 0:05:51]} cxd4 {[%emt 0:03:18]} 14. Bf4 {[%emt 0:01:47]} Bd6 {[%emt 0:00:50]} 15. Qxd4 {[%emt 0:04:32]} f6 {[%emt 0:02:27]} 16. Nd3 {[%emt 0:06:28]} e5 $1 {[%emt 0:00:33]} (16... Nxc4 17. Rfc1 e5 18. Rxc4 $16 (18. Qxc4 Qxc4 19. Rxc4 exf4 $11)) 17. Qe3 {[%emt 0:07:17]} Nxc4 {[%emt 0:11:04]} 18. Qe4 {[%emt 0:03:15]} Qc6 {[%emt 0:00:38]} 19. Qe2 {[%emt 0:08:25]} Nb6 {[%emt 0:02:43]} 20. Bxe5 {[%emt 0:12:03]} (20. Rfc1 $142 Qd7 21. Nc5 Bxc5 22. Rxc5) 20... fxe5 $17 {[%emt 0:04:37]} (20... Bxe5 $6 21. f4 $11) 21. Nxe5 {[%emt 0:00:02]} Bxe5 {[%emt 0:00:10]} 22. Qxe5+ {[%emt 0:00:03]} Kf8 {[%emt 0:00:14]} ({Black should play} 22... Kf7 {Hoping for ...Rhe8.} 23. Rac1 Rhe8 24. Qf5+ Qf6 25. Qxh7 Rac8 (25... Qxb2 26. Rc7+ Re7 27. Qh5+ Kf8 28. Qh8+ Kf7 29. Qh5+ Kf8 30. Qh8+ Kf7 31. Qh5+ $11) 26. Rxc8 Rxc8 (26... Nxc8 27. Qh5+ Qg6 28. Qf3+ Kg8 29. Qxb7 $17)) 23. Rac1 $17 {[%emt 0:00:41]} Re8 {[%emt 0:04:31]} (23... Qf6 $15 24. Qb5 Kg8) 24. Qa5 $11 {[%emt 0:00:51]} Qa4 {[%emt 0:03:33]} 25. Qf5+ $1 {[%emt 0:01:57]} Kg8 {[%emt 0:00:07]} 26. Rc7 {[%emt 0:04:42]} Qxa2 {[%emt 0:00:53]} 27. Rxb7 {[%emt 0:05:40]} (27. Qg4 $11 Qxb2 28. Qf3) 27... Qd5 $1 $17 {[%emt 0:00:32]} ({Worse is} 27... Qxb2 28. Qf7#) 28. Qxd5+ {[%emt 0:00:14]} Nxd5 {[%emt 0:00:09]} 29. Rxa7 {[%emt 0:00:04]} h5 {[%emt 0:00:31]} 30. Rd1 {[%emt 0:03:39]} Rh6 {[%emt 0:00:28]} 31. Rd7 {[%emt 0:02:48]} Rhe6 {[%emt 0:00:43]} 32. g3 {[%emt 0:01:47]} Nf6 {[%emt 0:00:40]} 33. Rd8 {[%emt 0:00:08]} Re2 {[%emt 0:01:49]} 34. R1d2 {[%emt 0:02:16]} Kf7 {[%emt 0:00:38]} 35. Kg2 {[%emt 0:01:21]} R8e7 {[%emt 0:01:12]} 36. h3 {[%emt 0:00:30]} Re1 {[%emt 0:00:42]} 37. Rc2 {[%emt 0:01:49]} Rb7 {[%emt 0:01:13]} 38. Rdc8 {[%emt 0:01:52]} Ree7 {[%emt 0:01:49]} 39. R8c4 {[%emt 0:00:00]} Rb3 {[%emt 0:00:35]} 40. Rc7 {[%emt 0:00:00]} Rxc7 {[%emt 0:00:39]} 41. Rxc7+ {[%emt 0:00:00]} Kg6 {[%emt 0:00:21]} 42. Rc2 {[%emt 0:02:00]} Nd5 {[%emt 0:00:55]} 43. Rc6+ {[%emt 0:00:00]} Kf5 {[%emt 0:00:37]} 44. Rd6 {[%emt 0:00:18]} Rd3 {[%emt 0:57:02]} 45. Ra6 {[%emt 0:00:40]} Rd2 {[%emt 0:00:00]} 46. Ra7 {[%emt 0:00:29]} g6 {[%emt 0:00:00]} ({Much less strong is} 46... Rxb2 47. Rxg7 h4 48. Kg1 $15) 47. Rb7 {[%emt 0:00:22]} Ne3+ {[%emt 0:00:00]} 48. Kf3 {[%emt 0:00:30]} (48. Kg1 $142) 48... Nd1 $19 {[%emt 0:00:00]} 49. Rb5+ {[%emt 0:00:23]} Kf6 {[%emt 0:00:00]} 50. Rb6+ {[%emt 0:00:30]} Kg7 {[%emt 0:00:00]} 51. Rb7+ {[%emt 0:00:11]} Kh6 {[%emt 0:00:00]} 52. b4 {[%emt 0:00:30]} Rxf2+ {[%emt 0:00:00]} 53. Ke4 {[%emt 0:00:01]} Rb2 {[%emt 0:00:00]} 54. Kd4 {[%emt 0:02:06]} Rb3 55. b5 {[%emt 0:00:00]} Rxg3 {[%emt 0:00:00]} 56. b6 {[%emt 0:00:00]} Rxh3 {[%emt 0:00:00]} 57. Kc4 {[%emt 0:00:59]} Rc3+ {[%emt 0:00:00]} 58. Kb5 {[%emt 0:00:29]} Rb3+ {[%emt 0:00:00]} 59. Kc6 {[%emt 0:00:06]} Ne3 {[%emt 0:00:00]} 60. Ra7 {[%emt 0:00:10]} Nf5 {[%emt 0:00:00]} 61. b7 {[%emt 0:00:20]} Nd4+ {[%emt 0:00:00]} 62. Kd5 {[%emt 0:00:27]} Nb5 {[%emt 0:00:00]} 63. Ra5 {[%emt 0:00:07]} Nd6 {[%emt 0:00:00]} 64. Kd4 {[%emt 0:02:22]} 0-1

[Event "Satranc Arena IM Series-1 2024"]
[Site "Izmir"]
[Date "2024.03.18"]
[Round "1.5"]
[White "Kazimova, Narmin"]
[Black "Gur, Ali"]
[Result "1-0"]
[ECO "A28"]
[WhiteElo "2147"]
[BlackElo "1848"]
[Annotator "RC"]
[PlyCount "95"]
[EventDate "2024.03.18"]
[EventCountry "TUR"]
[SourceTitle "playchess.com"]
[Source "ChessBase"]
[SourceQuality "1"]
[TimeControl "5400+30"]

1. c4 {[%emt 0:00:06]} Nf6 {[%emt 0:00:07]} 2. Nc3 {[%emt 0:00:14]} e5 {[%emt 0:00:25]} 3. e3 {[%emt 0:00:47]} Be7 {[%emt 0:01:00]} 4. Nf3 {[%emt 0:02:07]} Nc6 {[%emt 0:00:01]} 5. d4 {[%emt 0:06:29]} exd4 {[%emt 0:00:42]} 6. Nxd4 {[%emt 0:01:27]} Nxd4 {[%emt 0:02:02]} 7. Qxd4 {[%emt 0:00:38]} d6 {[%emt 0:01:28]} 8. Be2 {[%emt 0:00:40]} Be6 {[%emt 0:00:29]} 9. e4 {[%emt 0:01:57]} O-O {[%emt 0:01:35]} 10. O-O {[%emt 0:00:42]} Nd7 {[%emt 0:05:08]} 11. Be3 {[%emt 0:03:22]} Bf6 {[%emt 0:01:46]} 12. Qd2 {[%emt 0:00:48]} Nc5 {[%emt 0:04:51]} 13. Bd4 {[%emt 0:26:16]} a5 {[%emt 0:01:12]} 14. f4 {[%emt 0:02:31]} Bxd4+ {[%emt 0:01:48]} 15. Qxd4 {[%emt 0:00:43]} Bd7 {[%emt 0:04:53]} 16. Rad1 {[%emt 0:01:41]} b6 {[%emt 0:08:17]} 17. Bf3 {[%emt 0:07:02]} Bc6 {[%emt 0:02:47]} 18. e5 {[%emt 0:00:08]} Bxf3 {[%emt 0:00:06]} 19. Rxf3 {[%emt 0:00:30]} Re8 {[%emt 0:03:05]} 20. exd6 {[%emt 0:01:32]} cxd6 {[%emt 0:01:00]} 21. Qxd6 {[%emt 0:06:30]} Qh4 {[%emt 0:03:33]} 22. Qxb6 {[%emt 0:03:09]} Rac8 {[%emt 0:04:30]} 23. Qxa5 {[%emt 0:05:22]} Ne6 {[%emt 0:03:53]} 24. Qe5 {[%emt 0:10:34]} f6 {[%emt 0:05:46]} 25. Qe1 {[%emt 0:00:26]} Qh5 {[%emt 0:00:29]} 26. Qf1 {[%emt 0:02:54]} Qc5+ {[%emt 0:01:35]} 27. Kh1 {[%emt 0:00:02]} Nd4 {[%emt 0:03:35]} 28. Rfd3 {[%emt 0:02:27]} Nc2 {[%emt 0:02:43]} 29. Nd5 {[%emt 0:05:08]} Rb8 {[%emt 0:03:13]} 30. b3 {[%emt 0:00:55]} Qa7 {[%emt 0:02:00]} 31. R3d2 {[%emt 0:01:28]} Na3 {[%emt 0:04:32]} 32. Re2 {[%emt 0:00:27]} Rxe2 {[%emt 0:01:26]} 33. Qxe2 {[%emt 0:00:01]} h6 {[%emt 0:02:55]} 34. h3 {[%emt 0:00:17]} Kh8 {[%emt 0:00:39]} 35. Ne7 {[%emt 0:02:22]} Qb7 {[%emt 0:02:33]} 36. Ng6+ {[%emt 0:00:44]} Kh7 {[%emt 0:00:32]} 37. Qd3 {[%emt 0:00:36]} Re8 {[%emt 0:01:00]} 38. Ne7+ {[%emt 0:02:51]} Kh8 {[%emt 0:00:08]} 39. Nd5 {[%emt 0:00:05]} Qc6 {[%emt 0:01:14]} 40. Kh2 {[%emt 0:01:28]} f5 {[%emt 0:04:09]} 41. Qxf5 {[%emt 0:00:35]} Re2 {[%emt 0:00:29]} 42. Qf8+ {[%emt 0:00:15]} Kh7 {[%emt 0:00:01]} 43. Qxa3 {[%emt 0:01:06]} Qe6 {[%emt 0:01:16]} 44. Qe7 {[%emt 0:00:40]} Rxg2+ {[%emt 0:01:13]} 45. Kxg2 {[%emt 0:00:05]} Qg6+ {[%emt 0:00:06]} 46. Kf1 {[%emt 0:00:48]} Qc2 {[%emt 0:01:15]} 47. Nf6+ {[%emt 0:00:07]} Kg6 {[%emt 0:00:06]} 48. Qe4+ {[%emt 0:00:05]} 1-0